bitfinex-derivatives/quotes_BTCF0:USTF0_20250402
["timestamp","ask_amount","ask_price","bid_price","bid_amount"]
[1743593954594,0.00152001,84799.0,84798.0,0.4793249]
[1743593955306,0.00152001,84799.0,84798.0,0.5403249]
[1743593955695,0.11944351,84799.0,84798.0,0.1795249]
[1743593955900,0.15044351,84799.0,84798.0,0.1795249]
[1743593956806,0.03252001,84799.0,84798.0,0.1795249]
[1743593957895,0.06472001,84799.0,84798.0,0.1795249]
[1743593958406,0.24068438,84799.0,84798.0,0.1795249]
[1743593958900,0.24068438,84799.0,84796.0,0.1179262]
[1743593959205,0.24068438,84799.0,84798.0,0.1179249]
[1743593959405,0.24068438,84799.0,84798.0,0.1185249]
[1743593959805,0.24068438,84799.0,84798.0,0.0006]
[1743593960005,0.1179305,84794.0,84793.0,8e-05]
[1743593960309,0.1192505,84794.0,84793.0,8e-05]
[1743593960507,0.31245121,84794.0,84793.0,0.1192919]
[1743593960694,0.31245121,84794.0,84793.0,0.1179319]
[1743593960899,0.37345121,84794.0,84793.0,0.1179319]
[1743593962100,0.37345121,84794.0,84793.0,0.1185319]
[1743593964001,0.64237643,84794.0,84793.0,0.1185319]
[1743593964200,0.64237643,84794.0,84793.0,0.1179319]
[1743593966900,0.43149208,84794.0,84793.0,0.1179319]
[1743593967113,0.43149208,84794.0,84793.0,0.1186119]
[1743593967406,0.79229208,84794.0,84793.0,0.1186119]
[1743593968519,0.61539568,84794.0,84793.0,0.1186119]
[1743593968707,0.48116087,84794.0,84793.0,0.1186119]
[1743593969401,0.59909137,84794.0,84793.0,0.1517119]
[1743593969599,0.48116087,84794.0,84793.0,0.1517119]
[1743593970097,0.48116087,84794.0,84793.0,0.1847119]
[1743593970301,0.59909137,84794.0,84793.0,0.1517119]
[1743593970908,0.48116087,84794.0,84793.0,0.1517119]
[1743593972307,0.59909137,84794.0,84793.0,0.1517119]
[1743593972707,0.48116087,84794.0,84793.0,0.1517119]
[1743593973807,0.48116087,84794.0,84793.0,0.1828119]
[1743593974610,0.59909137,84794.0,84793.0,0.1828119]
[1743593974797,0.48116087,84794.0,84793.0,0.1828119]
[1743593975002,0.45026087,84794.0,84793.0,0.1828119]
[1743593976101,0.45026087,84794.0,84793.0,1.0428119]
[1743593977721,0.48056087,84794.0,84793.0,1.0428119]
[1743593978313,0.48056087,84794.0,84793.0,0.1828119]
[1743593979019,0.45026087,84794.0,84793.0,0.1828119]
[1743593979218,0.08946087,84794.0,84793.0,0.1828119]
[1743593980222,0.08814087,84794.0,84793.0,0.1828119]
[1743593980622,0.08946087,84794.0,84793.0,0.1828119]
[1743593980823,0.05936087,84794.0,84793.0,0.1828119]
[1743593981116,0.18502743,84794.0,84793.0,0.1186119]
[1743593981322,0.30431793,84794.0,84793.0,0.1186119]
[1743593981920,0.36991793,84794.0,84793.0,0.1186119]
[1743593982819,0.36991793,84794.0,84793.0,0.1487119]
[1743593985212,0.36991793,84794.0,84793.0,0.00068]
[1743593985213,0.73071793,84794.0,84793.0,0.00068]
[1743593985413,0.73071793,84794.0,84783.0,8e-05]
[1743593985414,0.117943,84785.0,84784.0,0.00017692]
[1743593985619,0.480223,84785.0,84784.0,0.00077692]
[1743593985811,0.1179458,84783.0,84782.0,8e-05]
[1743593986017,0.1179625,84771.0,84770.0,0.9779623]
[1743593986321,0.117968,84767.0,84766.0,8e-05]
[1743593986522,0.1179764,84761.0,84760.0,0.00176972]
[1743593986826,0.11961641,84761.0,84760.0,0.97982752]
[1743593987123,0.11961641,84761.0,84760.0,0.97974752]
[1743593987322,0.11961641,84761.0,84760.0,0.11974752]
[1743593987522,0.18291641,84761.0,84760.0,0.11974752]
[1743593988622,0.18291641,84761.0,84758.0,0.00047193]
[1743593988623,0.1179792,84759.0,84758.0,0.00047193]
[1743593988819,0.11961921,84759.0,84758.0,0.11845253]
[1743593989020,0.25313863,84759.0,84758.0,0.11845253]
[1743593989227,0.25313863,84759.0,84758.0,0.00047193]
[1743593991541,0.25313863,84759.0,84752.0,8e-05]
[1743593991542,0.1179875,84753.0,84752.0,8e-05]
[1743593991721,0.48042751,84753.0,84752.0,8e-05]
[1743593992030,0.61171199,84753.0,84752.0,8e-05]
[1743593992428,0.67301199,84753.0,84752.0,8e-05]
[1743593993626,0.1179889,84752.0,84749.0,0.1179921]
[1743593993822,0.1179917,84750.0,84749.0,0.1179921]
[1743593994125,0.00172001,84750.0,84749.0,0.1179921]
[1743593994330,0.11971171,84750.0,84749.0,0.1179921]
[1743593994633,0.11971171,84750.0,84749.0,0.1505921]
[1743593994634,0.18101171,84750.0,84749.0,0.1505921]
[1743593994823,0.18101171,84750.0,84749.0,1.0105921]
[1743593995131,0.30712731,84750.0,84749.0,0.1179921]
[1743593995728,0.1179931,84749.0,84748.0,0.1180745]
[1743593995927,0.11963311,84749.0,84748.0,0.1180745]
[1743593996127,0.31586929,84749.0,84748.0,0.1180745]
[1743593996323,0.31586929,84749.0,84748.0,8e-05]
[1743593996528,0.37486649,84749.0,84746.0,0.1179961]
[1743593996723,0.1179959,84747.0,84746.0,0.1179961]
[1743593996929,0.11963591,84747.0,84746.0,0.1179961]
[1743593997130,0.24651685,84747.0,84746.0,0.1179961]
[1743594000336,0.1179987,84745.0,84744.0,8e-05]
[1743594000544,0.1180014,84743.0,84742.0,0.00047202]
[1743594000752,0.11964141,84743.0,84742.0,0.00047202]
[1743594001047,0.24961285,84743.0,84742.0,0.00047202]
[1743594001340,0.28111285,84743.0,84742.0,0.00047202]
[1743594001542,0.31131285,84743.0,84742.0,0.00047202]
[1743594003138,0.31131285,84743.0,84742.0,0.11847482]
[1743594003543,0.31131285,84743.0,84742.0,0.15157482]
[1743594004145,0.31131285,84743.0,84742.0,0.11847482]
[1743594004634,0.31131285,84743.0,84742.0,0.00047202]
[1743594005341,0.31131285,84743.0,84742.0,0.11847482]
[1743594005535,0.31131285,84743.0,84742.0,0.15097482]
[1743594006440,0.19331145,84743.0,84742.0,0.15097482]
[1743594006639,0.27981285,84743.0,84742.0,0.00420713]
[1743594007145,0.27981285,84743.0,84742.0,0.12220993]
[1743594007345,0.31011285,84743.0,84742.0,0.12220993]
[1743594008347,0.31011285,84743.0,84742.0,0.1180028]
[1743594008642,0.1180098,84737.0,84736.0,0.1180912]
[1743594008847,0.11964981,84737.0,84736.0,8e-05]
[1743594009051,0.1180168,84732.0,84731.0,0.0308]
[1743594009241,0.48045681,84732.0,84731.0,0.03088]
[1743594009441,0.6701942,84732.0,84731.0,0.03088]
[1743594009643,0.6701942,84732.0,84731.0,0.0308]
[1743594011249,0.6701942,84732.0,84731.0,0.1488181]
[1743594011647,0.6701942,84732.0,84728.0,8e-05]
[1743594011847,0.6701942,84732.0,84721.0,8e-05]
[1743594011848,0.118046,84711.0,84708.0,0.00882006]
[1743594012048,0.48048601,84711.0,84709.0,0.1180484]
[1743594012240,0.61687438,84711.0,84709.0,8e-05]
[1743594012548,0.61687438,84711.0,84701.0,0.0961]
[1743594012847,0.1180586,84702.0,84701.0,0.03308]
[1743594013052,0.1197386,84702.0,84701.0,0.1510599]
[1743594013349,0.1180599,84701.0,84700.0,0.02271941]
[1743594013558,0.14999991,84701.0,84700.0,0.14078071]
[1743594013759,0.27835298,84701.0,84700.0,0.14078071]
[1743594013946,0.31105298,84701.0,84700.0,0.14078071]
[1743594014255,0.31105298,84701.0,84700.0,0.02271941]
[1743594015546,0.34155298,84701.0,84700.0,0.02271941]
[1743594016956,0.31105298,84701.0,84700.0,0.14078071]
[1743594017357,0.31105298,84701.0,84700.0,0.02271941]
[1743594017547,0.31105298,84701.0,84700.0,0.14078071]
[1743594017747,0.31105298,84701.0,84700.0,0.02271941]
[1743594017957,0.31105298,84701.0,84700.0,0.14078071]
[1743594018152,0.31105298,84701.0,84700.0,0.02271941]
[1743594018548,0.31105298,84701.0,84700.0,0.14078071]
[1743594018749,0.31105298,84701.0,84700.0,1.00078071]
[1743594019348,0.31105298,84701.0,84700.0,1.03218071]
[1743594020047,0.31105298,84701.0,84700.0,0.17218071]
[1743594021157,0.36845768,84701.0,84700.0,0.17218071]
[1743594021359,0.42748828,84701.0,84698.0,0.10845402]
[1743594021656,0.30942838,84701.0,84700.0,0.1180613]
[1743594022755,0.25039778,84701.0,84700.0,0.1180613]
[1743594022943,0.21769778,84701.0,84700.0,0.1180613]
[1743594024654,0.05904471,84701.0,84700.0,0.1180613]
[1743594024854,0.3608,84722.0,84708.0,0.0590249]
[1743594025051,0.00181704,84719.0,84718.0,0.4788363]
[1743594025357,0.55952041,84732.0,84731.0,0.1180181]
[1743594025556,0.56068041,84732.0,84731.0,0.1186181]
[1743594025751,0.56068041,84732.0,84731.0,0.1500181]
[1743594026460,0.36366711,84732.0,84731.0,0.1500181]
[1743594026648,0.36366711,84732.0,84731.0,0.1810181]
[1743594027459,0.39376711,84732.0,84731.0,0.1810181]
[1743594027760,0.51980593,84732.0,84731.0,0.1507181]
[1743594027951,0.51980593,84732.0,84731.0,0.0327]
[1743594028153,0.51980593,84732.0,84731.0,0.1507181]
[1743594028350,0.51980593,84732.0,84731.0,0.0006]
[1743594030255,0.27531562,84732.0,84731.0,0.0006]
[1743594031251,0.27531562,84732.0,84731.0,0.1186181]
[1743594033954,0.45051416,84732.0,84731.0,0.0006]
[1743594036961,0.27531562,84732.0,84731.0,0.0006]
[1743594037460,0.1180279,84724.0,84723.0,0.00017703]
[1743594037661,0.4799879,84724.0,84723.0,0.00025703]
[1743594037864,0.61131845,84724.0,84723.0,0.00085703]
[1743594038055,0.61131845,84724.0,84723.0,0.00025703]
[1743594038255,0.68491845,84724.0,84723.0,0.00025703]
[1743594038452,0.68491845,84724.0,84723.0,0.11888633]
[1743594038961,0.68491845,84724.0,84723.0,0.00085703]
[1743594039165,0.68491845,84724.0,84723.0,0.00025703]
[1743594039555,0.68491845,84724.0,84723.0,0.00017703]
[1743594040364,0.68491845,84724.0,84723.0,0.00081703]
[1743594040558,0.68491845,84724.0,84723.0,0.00017703]
[1743594040754,0.68491845,84724.0,84723.0,0.11880633]
[1743594042561,0.68491845,84724.0,84723.0,0.00077703]
[1743594042958,0.68491845,84724.0,84723.0,0.11820633]
[1743594043163,0.68491845,84724.0,84723.0,0.11880633]
[1743594045355,0.68491845,84724.0,84723.0,0.00077703]
[1743594045655,0.68491845,84724.0,84723.0,0.00017703]
[1743594053376,0.74230862,84724.0,84723.0,0.00017703]
[1743594053974,0.38150862,84724.0,84723.0,0.00017703]
[1743594054172,0.22548072,84724.0,84723.0,0.11940633]
[1743594054377,0.21217807,84724.0,84723.0,0.11940633]
[1743594054677,0.21217807,84724.0,84723.0,0.19340633]
[1743594055482,0.17657807,84724.0,84723.0,0.19340633]
[1743594056675,0.1191879,84724.0,84723.0,0.19340633]
[1743594061381,0.1535879,84724.0,84723.0,0.19340633]
[1743594063179,0.03556,84724.0,84723.0,0.19340633]
[1743594063385,0.1535879,84724.0,84723.0,0.19340633]
[1743594064475,0.1535879,84724.0,84723.0,0.11940633]
[1743594064679,0.68560209,84724.0,84723.0,0.00137703]
[1743594064869,0.68560209,84724.0,84723.0,0.00017703]
[1743594065073,0.68560209,84724.0,84717.0,8e-05]
[1743594065281,0.1180363,84718.0,84717.0,8e-05]
[1743594065578,0.0590237,84711.0,84708.0,0.27007382]
[1743594065780,0.1180488,84709.0,84708.0,0.21164922]
[1743594066091,0.1192088,84709.0,84708.0,0.21164922]
[1743594066287,0.24712447,84709.0,84708.0,0.32969942]
[1743594066585,0.32782447,84709.0,84708.0,0.32969942]
[1743594067673,0.32782447,84709.0,84708.0,0.1186502]
[1743594070987,0.38522146,84709.0,84708.0,0.1186502]
[1743594071389,0.38522146,84709.0,84708.0,0.0006]
[1743594071586,0.1180502,84708.0,84707.0,0.1564509]
[1743594071887,0.11925021,84708.0,84707.0,0.1570909]
[1743594072079,0.32339905,84708.0,84707.0,0.1570909]
[1743594072279,0.32339905,84708.0,84707.0,0.1186909]
[1743594075092,0.32339905,84708.0,84707.0,0.00064]
[1743594075480,0.118053,84707.0,84706.0,0.1180519]
[1743594075681,0.11925301,84707.0,84706.0,0.9786919]
[1743594075986,0.33564117,84707.0,84706.0,0.9786919]
[1743594076189,0.0590272,84705.0,84697.0,8e-05]
[1743594076383,0.4788613,84700.0,84699.0,0.00144]
[1743594076688,0.1180683,84695.0,84693.0,0.86]
[1743594076988,0.1194283,84695.0,84694.0,0.00183229]
[1743594077189,0.25122377,84695.0,84694.0,0.00183229]
[1743594077490,0.33142377,84695.0,84694.0,0.00183229]
[1743594078479,0.33142377,84695.0,84694.0,0.00047229]
[1743594078685,0.37272377,84695.0,84694.0,0.00047229]
[1743594078994,0.37272377,84695.0,84694.0,0.00107229]
[1743594079182,0.37272377,84695.0,84694.0,0.00047229]
[1743594085483,0.33142377,84695.0,84694.0,0.11854199]
[1743594085689,0.33142377,84695.0,84694.0,0.11914199]
[1743594086192,0.33142377,84695.0,84694.0,0.00107229]
[1743594087396,0.33142377,84695.0,84694.0,0.11914199]
[1743594087592,0.33142377,84695.0,84694.0,0.00107229]
[1743594089494,0.33142377,84695.0,84694.0,0.11914199]
[1743594089888,0.33142377,84695.0,84694.0,0.20134199]
[1743594090700,0.33142377,84695.0,84694.0,0.23924199]
[1743594091098,0.33142377,84695.0,84694.0,0.08327229]
[1743594091399,0.33142377,84695.0,84694.0,0.00047229]
[1743594091992,0.37112377,84695.0,84694.0,0.00047229]
[1743594092790,0.1180739,84691.0,84690.0,8e-05]
[1743594092988,0.4802339,84691.0,84690.0,0.00068]
[1743594093189,0.68576442,84691.0,84690.0,8e-05]
[1743594093494,0.1771289,84684.0,84683.0,0.1180781]
[1743594093697,0.1771289,84684.0,84683.0,0.1581581]
[1743594093994,0.1596781,84688.0,84687.0,0.1180795]
[1743594094196,0.0416,84688.0,84687.0,0.1977795]
[1743594094497,0.13258549,84688.0,84687.0,0.1977795]
[1743594094694,0.0391,84691.0,84687.0,0.1977795]
[1743594094695,0.0391,84691.0,84688.0,0.059039]
[1743594095002,0.1571749,84691.0,84690.0,0.1180753]
[1743594095501,0.28185569,84691.0,84690.0,0.1977753]
[1743594096203,0.28185469,84691.0,84690.0,0.1977753]
[1743594098792,0.29389728,84694.0,84693.0,0.1180711]
[1743594098989,0.29389728,84694.0,84693.0,0.1186711]
[1743594098990,0.21738748,84694.0,84693.0,0.1186711]
[1743594099194,0.45918732,84694.0,84693.0,0.1994711]
[1743594100093,0.50078732,84694.0,84693.0,0.2378711]
[1743594100597,0.50078732,84694.0,84693.0,0.0006]
[1743594100786,0.1180795,84687.0,84686.0,0.0407]
[1743594100987,0.1194395,84687.0,84686.0,0.0413]
[1743594101287,0.25068289,84687.0,84686.0,0.0413]
[1743594101492,0.33248289,84687.0,84686.0,0.1587809]
[1743594101694,0.33248289,84687.0,84686.0,0.1601409]
[1743594103608,0.50831037,84687.0,84686.0,0.1601409]
[1743594106696,0.61783087,84687.0,84674.0,7e-08]
[1743594107005,0.61783087,84687.0,84676.0,0.0590467]
[1743594107006,0.3608,84679.0,84676.0,0.0590467]
[1743594107193,0.0408,84678.0,84677.0,0.1180934]
[1743594107498,0.0408,84678.0,84677.0,0.1596934]
[1743594107499,0.202492,84678.0,84677.0,0.1596934]
[1743594108097,0.0844,84678.0,84677.0,0.1983934]
[1743594108297,0.202492,84678.0,84677.0,0.1983934]
[1743594109102,0.0844,84678.0,84677.0,0.1983934]
[1743594109298,0.160692,84678.0,84677.0,0.1983934]
[1743594110007,0.199392,84678.0,84677.0,0.1983934]
[1743594111301,0.37536628,84678.0,84677.0,0.1983934]
[1743594114800,0.199392,84678.0,84677.0,0.1983934]
[1743594115407,0.0813,84678.0,84673.0,0.0592093]
[1743594115605,0.1180976,84674.0,84673.0,0.2363507]
[1743594115914,0.1198576,84674.0,84673.0,1.0963507]
[1743594116207,0.3608,84679.0,84673.0,1.1760507]
[1743594116409,0.3608,84679.0,84678.0,0.118092]
[1743594116410,0.36204001,84679.0,84678.0,0.118092]
[1743594116712,0.48013061,84679.0,84678.0,0.118092]
[1743594116897,0.48013061,84679.0,84678.0,0.197792]
[1743594117301,0.51953061,84679.0,84678.0,0.197792]
[1743594119104,0.51953061,84679.0,84678.0,0.156492]
[1743594119603,0.51953061,84679.0,84678.0,0.195192]
[1743594120113,0.51953061,84679.0,84678.0,0.195792]
[1743594120703,0.51953061,84679.0,84678.0,0.157092]
[1743594121902,0.40144001,84679.0,84678.0,0.157092]
[1743594122106,0.40144001,84679.0,84678.0,0.17270285]
[1743594122311,0.51953061,84679.0,84678.0,0.21150285]
[1743594122521,0.40144001,84679.0,84678.0,0.21150285]
[1743594122899,0.36204001,84679.0,84678.0,0.21150285]
[1743594123106,0.36204001,84679.0,84678.0,0.23749616]
[1743594124011,0.36204001,84679.0,84678.0,0.31521616]
[1743594124412,0.36204001,84679.0,84678.0,0.33059386]
[1743594124607,0.36204001,84679.0,84678.0,0.33130575]
[1743594124911,0.36204001,84679.0,84678.0,1.19130575]
[1743594125208,0.36204001,84679.0,84678.0,1.1652651]
[1743594125809,0.36204001,84679.0,84678.0,1.1498874]
[1743594126210,0.00124001,84679.0,84678.0,1.1498874]
[1743594126409,0.14079155,84680.0,84679.0,0.1180906]
[1743594126715,0.14079155,84680.0,84679.0,0.252806]
[1743594127103,0.00017714,84682.0,84681.0,0.1180878]
[1743594127308,0.0004,84703.0,84694.0,0.0590344]
[1743594127508,0.24573032,84701.0,84700.0,0.1180613]
[1743594127805,0.24573032,84701.0,84700.0,0.1187013]
[1743594128003,0.36379022,84701.0,84700.0,0.1187013]
[1743594128202,0.36379022,84701.0,84700.0,0.13445066]
[1743594128608,0.24573032,84701.0,84700.0,0.17495066]
[1743594128808,0.36379022,84701.0,84700.0,0.17495066]
[1743594129106,0.36379022,84701.0,84700.0,0.17494507]
[1743594129311,0.36379022,84701.0,84700.0,0.1869848]
[1743594129614,0.11929991,84701.0,84700.0,0.1869848]
[1743594130708,0.11929991,84701.0,84700.0,0.13444507]
[1743594130914,0.16009991,84701.0,84700.0,0.1433085]
[1743594132418,0.16009991,84701.0,84700.0,0.0252472]
[1743594132610,0.1180697,84694.0,84691.0,0.01163571]
[1743594132915,0.48010971,84694.0,84693.0,0.01580982]
[1743594133105,0.48010971,84694.0,84681.0,0.21104922]
[1743594133106,0.1180711,84693.0,84687.0,0.00887672]
[1743594133311,0.2002911,84693.0,84687.0,0.00887672]
[1743594133512,0.33011832,84693.0,84687.0,0.00887672]
[1743594135119,0.33011832,84693.0,84681.0,0.27017262]
[1743594135315,0.33011832,84693.0,84681.0,0.21112922]
[1743594135619,0.33011832,84693.0,84683.0,0.1180842]
[1743594135916,0.33011832,84693.0,84684.0,0.1180835]
[1743594136421,0.33011832,84693.0,84682.0,0.1180854]
[1743594136814,0.33011832,84693.0,84683.0,0.118085]
[1743594137017,1.05171832,84693.0,84683.0,0.118085]
[1743594137223,1.05171832,84693.0,84685.0,0.1180812]
[1743594137519,1.05171832,84693.0,84684.0,0.00878077]
[1743594137715,1.1091327,84693.0,84684.0,0.00878077]
[1743594138221,1.1091327,84693.0,84681.0,8e-05]
[1743594138421,1.1091327,84693.0,84680.0,0.1180884]
[1743594138719,1.1091327,84693.0,84681.0,8e-05]
[1743594138922,1.1091327,84693.0,84682.0,0.1180856]
[1743594141208,0.3875327,84693.0,84682.0,0.1180856]
[1743594141412,1.1091327,84693.0,84684.0,0.0590417]
[1743594141816,1.1091327,84693.0,84692.0,1.118e-05]
[1743594146717,0.3875327,84693.0,84692.0,1.118e-05]
[1743594146928,1.1091327,84693.0,84692.0,1.118e-05]
[1743594151328,0.1180864,84682.0,84681.0,8e-05]
[1743594151525,0.48012641,84682.0,84681.0,0.00068]
[1743594151716,0.7225599,84682.0,84681.0,8e-05]
[1743594153631,0.5265735,84682.0,84681.0,0.1181678]
[1743594153820,0.1657735,84682.0,84681.0,0.1187678]
[1743594154014,4e-08,84690.0,84689.0,0.1180767]
[1743594154220,0.00096005,84690.0,84689.0,0.1187567]
[1743594154515,0.3608,84705.0,84689.0,0.1187567]
[1743594154516,0.3608,84705.0,84698.0,0.1180641]
[1743594154716,1e-08,84703.0,84702.0,0.1180586]
[1743594154925,0.0590244,84709.0,84705.0,0.1180544]
[1743594155119,0.36362331,84706.0,84705.0,0.13122003]
[1743594155728,0.36362331,84706.0,84705.0,0.21392003]
[1743594157426,0.119133,84706.0,84705.0,0.21392003]
[1743594157633,0.119133,84706.0,84705.0,0.25612003]
[1743594158129,0.00108,84706.0,84705.0,0.25612003]
[1743594160233,0.119133,84706.0,84705.0,0.25612003]
[1743594162027,0.00108,84706.0,84705.0,0.25612003]
[1743594163434,0.00108,84706.0,84705.0,0.33384003]
[1743594164423,0.00017714,84714.0,84713.0,0.1180432]
[1743594164629,0.00157715,84714.0,84713.0,0.1194432]
[1743594165133,0.00157715,84714.0,84713.0,0.2051432]
[1743594165529,0.10581708,84719.0,84718.0,0.1180363]
[1743594165731,0.10581708,84719.0,84718.0,0.1975563]
[1743594166134,0.10581708,84719.0,84718.0,1.0575563]
[1743594166331,0.10581708,84719.0,84718.0,1.1422563]
[1743594166533,0.22385198,84719.0,84718.0,1.1422563]
[1743594167234,0.10581708,84719.0,84718.0,1.1422563]
[1743594167540,0.0004,84719.0,84718.0,1.1422563]
[1743594170330,0.0004,84719.0,84718.0,1.15128968]
[1743594170932,0.1184349,84719.0,84718.0,1.15128968]
[1743594171141,0.0417,84719.0,84718.0,1.15128968]
[1743594171539,0.1597349,84719.0,84718.0,1.15128968]
[1743594172039,0.0417,84719.0,84718.0,1.15128968]
[1743594178733,0.0408,84724.0,84723.0,0.1180293]
[1743594179039,0.0408,84724.0,84723.0,0.1197893]
[1743594179243,0.0408,84724.0,84723.0,0.2446893]
[1743594181642,0.0408,84724.0,84723.0,1.1046893]
[1743594182047,0.0408,84724.0,84723.0,1.0632893]
[1743594183951,0.1588279,84724.0,84723.0,0.1197893]
[1743594184144,0.1588279,84724.0,84723.0,0.1972293]
[1743594184447,0.1227,84724.0,84723.0,0.1972293]
[1743594186839,0.2407279,84724.0,84723.0,0.1197893]
[1743594188149,0.6015279,84724.0,84723.0,0.00176]
[1743594188448,0.1180349,84719.0,84715.0,0.00017714]
[1743594188644,0.1180349,84719.0,84716.0,0.1180378]
[1743594188841,0.118039,84716.0,84715.0,0.00025714]
[1743594189041,0.118039,84716.0,84715.0,0.00201714]
[1743594189241,0.118039,84716.0,84715.0,0.00193714]
[1743594189647,0.118039,84716.0,84715.0,0.11997754]
[1743594190043,0.118039,84716.0,84715.0,0.12892115]
[1743594190445,0.118039,84716.0,84715.0,0.00193714]
[1743594191754,0.118039,84716.0,84715.0,0.11997754]
[1743594193238,0.201339,84716.0,84715.0,0.11997754]
[1743594193444,0.201339,84716.0,84715.0,0.00193714]
[1743594193663,0.201339,84716.0,84715.0,0.11821754]
[1743594193856,0.201339,84716.0,84715.0,0.00193714]
[1743594194449,0.33311471,84716.0,84715.0,0.00193714]
[1743594194649,0.33311471,84716.0,84715.0,0.00017714]
[1743594196349,0.50880984,84716.0,84715.0,0.00017714]
[1743594200056,0.33311471,84716.0,84715.0,0.00017714]
[1743594200356,0.69391471,84716.0,84715.0,0.00017714]
[1743594200556,0.1180432,84713.0,84712.0,8e-05]
[1743594201056,0.1770788,84708.0,84707.0,0.1180505]
[1743594201247,0.5378788,84708.0,84707.0,0.1198105]
[1743594202442,0.5787788,84708.0,84707.0,0.1198105]
[1743594202846,0.5787788,84708.0,84707.0,0.00176]
[1743594203653,0.5787788,84708.0,84705.0,0.059027]
[1743594203654,0.118053,84706.0,84705.0,0.059027]
[1743594203862,0.118053,84706.0,84705.0,0.060787]
[1743594204050,0.200753,84706.0,84705.0,0.060787]
[1743594206353,0.561553,84706.0,84705.0,0.00176]
[1743594206551,0.1180558,84704.0,84703.0,0.12681153]
[1743594206757,0.1180558,84704.0,84703.0,0.12861153]
[1743594206955,0.2000558,84704.0,84703.0,0.12861153]
[1743594207558,0.2000558,84704.0,84703.0,0.1199368]
[1743594208560,0.5608558,84704.0,84703.0,0.1199368]
[1743594209060,0.5608558,84704.0,84699.0,0.04377714]
[1743594209061,0.1180613,84700.0,84699.0,0.00017714]
[1743594209259,0.4788613,84700.0,84699.0,0.00149714]
[1743594209450,0.69865874,84700.0,84699.0,0.00149714]
[1743594209653,0.69865874,84700.0,84699.0,0.00017714]
[1743594212261,0.69865874,84700.0,84699.0,0.15793984]
[1743594212470,0.69865874,84700.0,84699.0,0.20193984]
[1743594215070,0.69865874,84700.0,84699.0,0.08387714]
[1743594215257,0.69925875,84700.0,84699.0,0.20193984]
[1743594215973,0.69925875,84700.0,84699.0,0.16355984]
[1743594216974,0.69925875,84700.0,84699.0,0.08779714]
[1743594217268,0.69925875,84700.0,84699.0,0.11955984]
[1743594217674,0.69925875,84700.0,84699.0,0.11823984]
[1743594218660,0.69925875,84700.0,84699.0,0.16113984]
[1743594219067,0.69925875,84700.0,84699.0,0.08397714]
[1743594219567,0.69925875,84700.0,84699.0,0.00017714]
[1743594220368,0.69925875,84700.0,84699.0,0.11823984]
[1743594220573,0.69925875,84700.0,84699.0,0.11955984]
[1743594220964,0.69925875,84700.0,84699.0,0.20085984]
[1743594221364,0.53709745,84700.0,84699.0,0.20085984]
[1743594221571,0.00060001,84700.0,84699.0,0.20085984]
[1743594221772,0.36140001,84700.0,84699.0,0.20085984]
[1743594221969,0.00060001,84700.0,84699.0,0.20085984]
[1743594222667,0.11866131,84700.0,84699.0,0.20085984]
[1743594223459,0.16026131,84700.0,84699.0,0.20085984]
[1743594225378,0.00060001,84700.0,84699.0,0.20085984]
[1743594225580,0.1180613,84700.0,84699.0,0.20085984]
[1743594225871,0.11930131,84700.0,84699.0,0.20085984]
[1743594226969,0.16080131,84700.0,84699.0,0.20085984]
[1743594227168,0.04274001,84700.0,84699.0,0.20085984]
[1743594227369,0.16080131,84700.0,84699.0,0.20085984]
[1743594228677,0.26646598,84700.0,84699.0,0.20085984]
[1743594229073,0.14840468,84700.0,84699.0,0.20085984]
[1743594229273,0.10690468,84700.0,84699.0,0.20085984]
[1743594230179,0.10690468,84700.0,84699.0,1.06085984]
[1743594230376,0.14088623,84704.0,84703.0,0.1180572]
[1743594230877,0.14088623,84704.0,84703.0,0.2436572]
[1743594231573,0.14088623,84704.0,84703.0,1.1036572]
[1743594233075,0.0419,84705.0,84704.0,0.1180558]
[1743594233281,0.0419,84705.0,84704.0,0.2019358]
[1743594235180,0.0419,84705.0,84704.0,0.2794158]
[1743594241785,0.14088623,84711.0,84710.0,0.1180474]
[1743594241988,0.0434,84716.0,84715.0,0.1180404]
[1743594242186,0.0434,84716.0,84715.0,1.0570804]
[1743594242784,0.0434,84716.0,84715.0,1.1434804]
[1743594246384,0.0848,84723.0,84722.0,0.1180307]
[1743594246582,0.0848,84723.0,84722.0,0.1196307]
[1743594247088,0.5636293,84723.0,84722.0,0.1196307]
[1743594247390,0.5636293,84723.0,84722.0,0.13168857]
[1743594248790,0.0848,84723.0,84722.0,0.13168857]
[1743594248984,0.0848,84723.0,84722.0,0.17298857]
[1743594249582,0.1263,84723.0,84722.0,0.17298857]
[1743594249785,0.1263,84723.0,84722.0,0.21678857]
[1743594253702,0.0415,84723.0,84722.0,0.21678857]
[1743594253899,0.0415,84723.0,84722.0,0.29422857]
[1743594254106,0.00017714,84724.0,84723.0,0.1180293]
[1743594254304,0.00017714,84724.0,84723.0,0.1621693]
[1743594254502,0.00017714,84724.0,84723.0,0.2470693]
[1743594254698,0.00017714,84724.0,84723.0,0.2045693]
[1743594258613,0.08697714,84724.0,84723.0,0.2045693]
[1743594260406,0.08697714,84724.0,84723.0,0.2820093]
[1743594263915,0.08697714,84724.0,84723.0,0.2045693]
[1743594264103,0.08697714,84724.0,84723.0,0.2820093]
[1743594266515,0.0590078,84733.0,84723.0,0.2820093]
[1743594266516,0.0589992,84746.0,84734.0,0.118014]
[1743594266713,0.085,84738.0,84734.0,0.119614]
[1743594266904,0.085,84738.0,84734.0,0.160214]
[1743594267104,0.085,84738.0,84734.0,0.203614]
[1743594267304,0.085,84738.0,84734.0,1.063614]
[1743594267910,0.044,84737.0,84734.0,1.063614]
[1743594270115,0.085,84738.0,84736.0,0.1180112]
[1743594270415,0.0434,84738.0,84737.0,0.2815498]
[1743594270617,0.0434,84738.0,84737.0,0.2831498]
[1743594271112,0.0434,84738.0,84737.0,0.2407498]
[1743594271516,0.0434,84738.0,84737.0,0.2831498]
[1743594272115,0.00017702,84743.0,84742.0,0.1180028]
[1743594272316,0.00017702,84743.0,84742.0,0.1196828]
[1743594272621,0.00017702,84743.0,84742.0,0.1628828]
[1743594273018,0.00017702,84743.0,84742.0,0.17185215]
[1743594274612,0.00017702,84743.0,84742.0,0.21655215]
[1743594275420,0.17569513,84748.0,84742.0,0.21655215]
[1743594275421,0.3608,84764.0,84750.0,0.1179917]
[1743594275610,0.045,84754.0,84750.0,0.1970717]
[1743594275817,0.045,84754.0,84750.0,0.2391717]
[1743594276716,0.0438,84753.0,84750.0,0.2817717]
[1743594278524,0.045,84754.0,84753.0,0.1179875]
[1743594278820,0.045,84754.0,84753.0,0.1195875]
[1743594279614,0.045,84754.0,84753.0,0.9795875]
[1743594280227,0.045,84754.0,84753.0,0.99138477]
[1743594281521,0.0908,84754.0,84753.0,0.13138477]
[1743594286228,0.0908,84754.0,84753.0,0.17488477]
[1743594287128,0.1331,84754.0,84753.0,0.17488477]
[1743594288529,0.2510861,84754.0,84753.0,0.17488477]